{"text_format":"1","workbook":"xlsx","n_sheets":2,"sheets":["Smlouvy","Pomocné hodnoty"],"not_rendered":{"charts":0,"images":2,"macros":1,"external_links":0,"defined_names":0,"comments":1,"pivot_tables":0},"unopened":[],"bounds":{"document_bytes":16777216,"sheet_cells":100000,"rows_first":2000,"rows_last":500,"rows_between":2000,"halvings":0,"cell_chars":16384,"cell_head_chars":4096},"cells_cut":0,"cells_raw":0,"read":"whole","date_system":"1900"}

{"sheet":"Smlouvy","index":0,"n_rows":27,"n_cols":15,"rows_kept":27,"cut":false,"hidden":false,"merged":[[0,1,0,2],[1,1,1,2],[26,0,26,6],[21,0,21,4],[5,0,5,1],[9,0,9,1],[18,0,18,1],[7,0,7,4],[16,0,16,4]]}
["Žadatel","Fakultní  nemocnice Olomouc"]
["Název projektu","Novostavba pavilonu HOK - Olomouc"]
["Číslo projektu","CZ.05.5.11/0.0/0.0/17_061/0008664"]
[]
[null,null,"Identifikace smlouvy (název / předmět / číslo)","Dodavatel","Typ investičního výdaje","Cena bez DPH","% DPH","Cena s DPH","I / N","Část SoD nesouvisející s předmětem podpory bez DPH","Nezpůsobilé výdaje stanovené žadatelem bez DPH","Komentář k nezpůsobilým výdajům stanoveným žadatelem","Výsledné způsobilé výdaje bez DPH","Výsledné způsobilé výdaje do RoPD včetně DPH","Nesouvisející s předmětem s DPH"]
["Realizace",null,"Smlouva o dílo/zhotovitel stavby/","OHL ŽS, a.s.","Zateplení",128990069.95999999,21,{"$f":"F6*(1+(G6/100))","v":156077984.65159997},"I",0,25348246.82,"V nezpůsobilých výdajích jsou zahrnuty sadové úpravy, chodníky a komunikace, oplocení, vnitřní zařízení a vyhotovení interiéru a montáže zdravotnických a laboratorních zařízení. Do nezpůsobilých výdajů byly zařazeny i některé části položek přípojek a přeložek rozvodů a sdělovací a zabezpečovací technika. Podrobně viz rozpočet projetku.",{"$f":"F6-J6-K6","v":103641823.13999999},{"$f":"M6*(1+(G6/100))","v":125406605.99939997},{"$f":"(J6)*(1+(G6/100))","v":0}]
[]
["Realizace celkem",null,null,null,null,{"$f":"SUM(F6:F7)","v":128990069.95999999},null,{"$f":"SUM(H6:H7)","v":156077984.65159997},null,{"$f":"SUM(J6:J7)","v":0},null,null,{"$f":"SUM(M6:M7)","v":103641823.13999999},{"$f":"SUM(N6:N7)","v":125406605.99939997},{"$f":"SUM(O6:O7)","v":0}]
[]
["Projektová příprava",null,null,null,"Irelevantní",null,null,{"$f":"F10*(1+(G10/100))","v":0},null,null,null,null,{"$f":"F10-J10-K10","v":0},{"$f":"M10*(1+(G10/100))","v":0},{"$f":"(J10)*(1+(G10/100))","v":0}]
[null,null,null,null,"Irelevantní",null,null,0,null,null,null,null,0,0,0]
[null,null,"Objednávka/ polohopisné a výškopisné zaměření","GEOL, spol. s r.o.","Irelevantní",8300,21,10043,"I",null,null,null,8300,10043,0]
[null,null,"Objednávka/ technická nivelace","GEOL, spol. s r.o.","Irelevantní",1200,21,1452,"I",null,null,null,1200,1452,0]
[null,null,"Příkazní smlouva/ koordinátor BOZP","SAFEA IVS s.r.o.","Irelevantní",72000,21,87120,"I",null,null,null,72000,87120,0]
[null,null,"Smlouva o dílo/projektová dokumentace + autorský dozor","Adam Rujbr Architects s.r.o.","Irelevantní",3664000,21,4433440,"I",null,186000,"cena za výkon IČ k získání rozhodnutí o umístění stavby, získání SP, pro změnu stavby před dokončením",3478000,4208380,0]
[]
["Projektová příprava celkem",null,null,null,null,{"$f":"SUM(F10:F16)","v":3745500},null,{"$f":"SUM(H10:H16)","v":4532055},null,{"$f":"SUM(J10:J16)","v":0},null,null,{"$f":"SUM(M10:M16)","v":3559500},{"$f":"SUM(N10:N16)","v":4306995},{"$f":"SUM(O10:O16)","v":0}]
[]
["Propagace",null,"objednávka/dočasný billboard","Grapo s.r.o.","Irelevantní",6550,21,7925.5,"N",null,null,null,{"$f":"F19-J19-K19","v":6550},{"$f":"M19*(1+(G19/100))","v":7925.5},{"$f":"(J19)*(1+(G19/100))","v":0}]
[null,null,"objednávka/ pamětní deska","P&V rytecké práce, s.r.o.","Irelevantní",4450,21,5384.5,"N",null,null,null,{"$f":"F20-J20-K20","v":4450},{"$f":"M20*(1+(G20/100))","v":5384.5},{"$f":"(J20)*(1+(G20/100))","v":0}]
[]
["Propagace celkem",null,null,null,null,{"$f":"SUM(F19:F21)","v":11000},null,{"$f":"SUM(H19:H21)","v":13310},null,{"$f":"SUM(J19:J21)","v":0},null,null,{"$f":"SUM(M19:M21)","v":11000},{"$f":"SUM(N19:N21)","v":13310},{"$f":"SUM(O19:O21)","v":0}]
[]
[null,null,null,null,"Celkem",{"$f":"SUM(F8,F17,F22)","v":132746569.95999999},null,{"$f":"SUM(H8,H17,H22)","v":160623349.65159997},null,null,null,null,{"$f":"SUM(M8,M17,M22)","v":107212323.13999999},{"$f":"SUM(N8,N17,N22)","v":129726910.99939997}]
[null,null,null,null,"Celkem související s předmětem podpory",{"$f":"SUM(F8-J8,F17-J17,F22-J22)","v":132746569.95999999},null,{"$f":"SUM(H8-O8,H17-O17,H22-O22)","v":160623349.65159997}]
[]
["pozn.: Vyplňujte pouze bílo - zeleně stínované buňky ve sloupcích B až L. Při vyplňování se řiďte komentáři v rohu buněk! Po kontrole a nastavení konečné způsobilosti výdajů Vám projektový manažer zašle přehled částek způsobilých a nezpůsobilých výdajů ke všem zadaným smlouvám a zároveň konečnou podobu rozpočtu. Po odsouhlasení nastavíte v systému ISKP 2014+ částky u smluv a v rozpočtu v souladu se zaslaným návrhem."]

{"sheet":"Pomocné hodnoty","index":1,"n_rows":16,"n_cols":1,"rows_kept":16,"cut":false,"hidden":true,"merged":[]}
["I"]
["N"]
[]
["Zateplení"]
["Výměna zdroje (včetně kotelny či rek. OS)"]
["Vybudování nové otopné soustavy"]
["Instalace systému větrání s rekuperací odp. tepla"]
["Instalace solárního term. systému"]
["Instalace kogenerační jednotky"]
["Instalace fotovoltaického systému"]
["Výstavba veř. budov v pasivním e. s."]
["Další opatření navržená energetickým auditem"]
["Dokumentace skutečného provedení"]
["Rezerva"]
[]
["Irelevantní"]